Cogmind - Beta 10.2 @@@ ROGUE MODE // 2022.03.13 @ 14:04:46 Player: JamesGecko Result: Smashed by cave-in Performance ------------- Evolutions (1) 500 Regions Visited (3) 600 Robots Destroyed (16) 80 Value Destroyed (441) 441 Prototype IDs (0) 0 Alien Tech Used (0) 0 Bonus (0) 0 TOTAL SCORE: 1621 Bonus ------- None Cogmind --------- Core Integrity 0/400 Matter 171/300 Energy 98/100 System Corruption 0% Temperature Cool (0) Movement Treading (160) Location -9/Storage Parts ------- > --- POWER (1) -------- (None) > --- PROPULSION (2) --- Light Treads > --- UTILITY (3) ------ Heat Sink Terrain Scan Processor Hardened Light Armor Plating > --- WEAPON (3) ------- Shotgun Rocket Launcher > --- INVENTORY (4) ---- Small Storage Unit Medium Matter Pod (26) Peak State ------------ > --- POWER ------------ Ion Engine > --- PROPULSION ------- Light Treads > --- UTILITY ---------- Heat Sink Terrain Scan Processor Hardened Light Armor Plating > --- WEAPON ----------- Rocket Launcher Rocket Launcher > --- INVENTORY -------- Small Storage Unit Medium Matter Pod Rocket Launcher [Rating: 11] Favorites ----------- Power Ion Engine Engine Ion Engine Propulsion Aluminum Leg Treads Light Treads Leg Aluminum Leg Utility Small Storage Unit Device Heat Sink Storage Small Storage Unit Processor Terrain Scan Processor Protection Hardened Light Armor Plating Weapon Assault Rifle Energy Gun Small Laser Ballistic Gun Assault Rifle Launcher Rocket Launcher Build | -11 -10 -9 -9 ------- Run | Scr Mat Mat Sto Slots Evolved 2 | . . 2 . Power . | . . . . Propulsion . | . . . . Utility 1 | . . 1 . Weapon 1 | . . 1 . Parts Attached 25 | 6 5 3 11 Power 3 | 1 1 . 1 Engine 3 | 1 1 . 1 Core . | . . . . Reactor . | . . . . Propulsion 5 | 2 2 . 1 Treads 1 | . . . 1 Leg 4 | 2 2 . . Wheel . | . . . . Hover . | . . . . Flight . | . . . . Utility 9 | 1 2 1 5 Device 4 | . 2 1 1 Storage 2 | 1 . . 1 Processor 1 | . . . 1 Hackware . | . . . . Protection 2 | . . . 2 Artifact . | . . . . Weapon 8 | 2 . 2 4 Energy Gun 1 | . . 1 . Energy Cannon . | . . . . Ballistic Gun 4 | 2 . 1 1 Ballistic Cannon . | . . . . Launcher 3 | . . . 3 Special Weapon . | . . . . Impact Weapon . | . . . . Slashing Weapon . | . . . . Piercing Weapon . | . . . . Special Melee Weapon . | . . . . Unidentified Prototypes . | . . . . Parts Lost 15 | . 4 8 3 Power 3 | . 1 1 1 Propulsion 4 | . 2 2 . Utility 2 | . . 2 . Weapon 6 | . 1 3 2 Highest Loss Streak 8 | . 3 8 3 Average Slot Usage (%) 74 | . 84 79 50 Engine 10 | . 11 10 8 Treads 2 | . . . 9 Leg 16 | . 25 19 . Device 10 | . 9 16 6 Storage 9 | . 14 11 1 Processor 1 | . . . 4 Protection 2 | . . . 10 Energy Gun 1 | . . 7 . Ballistic Gun 14 | . 22 14 . Launcher 2 | . . . 9 Naked Turns . | . . . . Heaviest Build 22 | 11 12 15 22 Greatest Support 20 | 20 20 20 20 Greatest Overweight (x) 1 | . . 1 1 Average Overweight (x) . | . . . . Largest Inventory Capacity 6 | 6 6 6 6 Average Capacity 5 | 4 6 6 4 Most Carried 6 | 4 6 6 4 Average Carried 4 | 1 5 4 2 Final Capacity 6 | 6 6 6 4 Final Carried 6 | 4 6 4 2 Class Distribution -------------------- 87% | Mutant 9% | Scavenger-Skirmisher Dominant Class ---------------- Mutant | -10/Materials Scavenger-Skirmisher | -9/Materials Mutant | -9/Storage Resources | -11 -10 -9 -9 ----------- Run | Scr Mat Mat Sto Matter Collected 565 | 167 295 103 . Remotely . | . . . . Salvage Created 488 | . 295 114 79 Parts 41 | . 27 8 6 Haulers Intercepted . | . . . . Recyclers Shooed 1 | . . . 1 Parts Field Recycled . | . . . . Retrieved Matter . | . . . . Parts Self-Destructed . | . . . . Prevented . | . . . . Kills | -11 -10 -9 -9 ------- Run | Scr Mat Mat Sto Combat Hostiles Destroyed 13 | . 9 2 2 Guns 11 | . 9 2 . AOE 2 | . . . 2 Classes Destroyed 6 | . 3 2 1 Builder 1 | . . . 1 Tunneler 1 | . 1 . . Watcher 1 | . . 1 . Swarmer 3 | . 3 . . Grunt 7 | . 6 1 . Sentry 3 | . . 1 2 Best Kill Streak 3 | . 3 1 3 Combat Bots Only 3 | . 3 1 2 Max Kills in Single Turn 2 | . 1 1 2 Gunslinging . | . . . . Exploded 1 | . . . 1 Melee . | . . . . Uniques/NPCs Destroyed . | . . . . Combat | -11 -10 -9 -9 -------- Run | Scr Mat Mat Sto Damage Taken 1776 | . 641 645 490 Core 598 | . 185 199 214 Absorbed by Shields . | . . . . Core Remaining (%) 63 | 100 26 . . Volleys Fired 54 | 1 35 13 5 Largest 3 | 2 2 3 2 Hottest 80 | 40 40 80 66 Shots Fired 92 | 2 59 23 8 Gun 86 | 2 59 23 2 Cannon . | . . . . Launcher 6 | . . . 6 Special . | . . . . Kinetic 81 | 2 59 18 2 Thermal 5 | . . 5 . Explosive 6 | . . . 6 Electromagnetic . | . . . . Robot Hit Streak 8 | . 8 8 3 Robot Miss Streak 5 | . 5 1 2 Penetration Max . | . . . . Secondary Targets . | . . . . Shots Hit Robots 60 | . 38 17 5 Core Hits 31 | . 16 6 9 Critical Hits . | . . . . Critical Kills . | . . . . Critical Parts Destroyed . | . . . . Melee Attacks . | . . . . Impact . | . . . . Slashing . | . . . . Piercing . | . . . . Sneak Attacks . | . . . . Combat Hostiles . | . . . . Follow-up Attacks . | . . . . Damage Inflicted 573 | . 286 189 98 Guns 487 | . 286 189 12 Cannons . | . . . . Explosions 86 | . . . 86 Melee . | . . . . Ramming . | . . . . Kinetic 430 | . 286 132 12 Thermal 57 | . . 57 . Explosive 86 | . . . 86 Electromagnetic . | . . . . Impact . | . . . . Slashing . | . . . . Piercing . | . . . . Highest Corruption 3 | . 3 . . Average Corruption 2 | . 2 . . Corruption Purged . | . . . . Overload Shots . | . . . . Overflow Damage 12 | . . . 12 Projectiles . | . . . . Explosions 12 | . . . 12 Melee . | . . . . Knockbacks . | . . . . Impact . | . . . . Kinetic . | . . . . Secondary . | . . . . Self-Inflicted Damage 223 | . . . 223 Shots 6 | . . . 6 Rammed . | . . . . Targets Rammed . | . . . . Kicked . | . . . . Crushed . | . . . . Highest Temperature 3 | . . . 3 Average Temperature 3 | . . . 3 Received Heat Transfer 366 | . 222 81 63 Siege Activations . | . . . . Robots Corrupted . | . . . . Combat Hostiles . | . . . . Parts Fried . | . . . . Impact Corruptions . | . . . . Robots Melted . | . . . . Combat Hostiles . | . . . . Parts Melted . | . . . . Heat Transferred 125 | . . 125 . Parts Sabotaged . | . . . . Parts Stolen . | . . . . Parts Stripped . | . . . . Power Chain Reactions . | . . . . Missiles Intercepted . | . . . . Alert | -11 -10 -9 -9 ------- Run | Scr Mat Mat Sto Peak Influence 215 | . 215 212 180 Initial 90 | . . 90 85 Average 104 | . 110 157 102 Maximum Alert Level 1 | . 1 1 . Low Security (%) 96 | 100 95 90 100 Level 1 3 | . 4 9 . Level 2 . | . . . . Level 3 . | . . . . Level 4 . | . . . . Level 5 . | . . . . High Security . | . . . . Max Security . | . . . . Squads Dispatched 6 | . 3 2 1 Investigation 1 | . 1 . . Extermination . | . . . . Reinforcement 5 | . 2 2 1 Assault . | . . . . Garrison . | . . . . Intercept . | . . . . Construction Impeded . | . . . . Haulers Reinforced . | . . . . Stealth | -11 -10 -9 -9 --------- Run | Scr Mat Mat Sto Distress Signals 3 | . . 2 1 Communications Jammed . | . . . . Distress Signals . | . . . . Times Spotted 40 | . 11 25 4 Peak Tracking Total 15 | . 4 15 4 Tactical Retreats 1 | . . 1 . Traps | -11 -10 -9 -9 ------- Run | Scr Mat Mat Sto Traps Triggered 4 | . 3 . 1 Indirectly . | . . . . Trap Hack Attempts . | . . . . Triggered . | . . . . Disarmed . | . . . . Reprogrammed . | . . . . Reused . | . . . . Traps Extracted . | . . . . Installed . | . . . . Triggered . | . . . . Machines | -11 -10 -9 -9 ---------- Run | Scr Mat Mat Sto Machines Disabled 1 | . . . 1 Max in Single Turn 1 | . . . 1 Machines Sabotaged . | . . . . Garrisons Compromised . | . . . . Overloaded Fab Kills . | . . . . Fab Network Shutdowns . | . . . . Hacking | -11 -10 -9 -9 --------- Run | Scr Mat Mat Sto Machines Accessed . | . . . . Terminals . | . . . . Fabricators . | . . . . Repair Stations . | . . . . Recycling Units . | . . . . Scanalyzers . | . . . . Garrison Access . | . . . . Total Hacks . | . . . . Successful . | . . . . Failed . | . . . . Catastrophic . | . . . . Database Lockouts . | . . . . Manual . | . . . . Terminals . | . . . . Fabricators . | . . . . Repair Stations . | . . . . Recycling Units . | . . . . Scanalyzers . | . . . . Garrison Access . | . . . . Terminal Hacks . | . . . . Fabricator Hacks . | . . . . Repair Station Hacks . | . . . . Recycling Unit Hacks . | . . . . Scanalyzer . | . . . . Garrison Access Hacks . | . . . . Unauthorized Hacks . | . . . . Terminals . | . . . . Fabricators . | . . . . Repair Stations . | . . . . Recycling Units . | . . . . Scanalyzers . | . . . . Garrison Access . | . . . . Data Cores Recovered . | . . . . Used . | . . . . Hacking Detections . | . . . . Full Trace Events . | . . . . Feedback Events . | . . . . Feedback Blocked . | . . . . Robot Schematics Acquired . | . . . . Robots Built . | . . . . Matter . | . . . . Time . | . . . . Total Robot Build Rating . | . . . . Part Schematics Acquired . | . . . . Parts Built . | . . . . Matter . | . . . . Time . | . . . . Total Part Build Rating . | . . . . Parts Repaired . | . . . . Time . | . . . . Parts Recycled . | . . . . Recycled Matter . | . . . . Retrieved Matter . | . . . . Retrieved Components . | . . . . Parts Scanalyzed . | . . . . Part Schematics Acquired . | . . . . Parts Damaged . | . . . . Bothacking | -11 -10 -9 -9 ------------ Run | Scr Mat Mat Sto Used RIF Installer . | . . . . Robots Hacked . | . . . . Non-combat . | . . . . Combat . | . . . . Robot Hacks Applied . | . . . . Relay Couplers Released . | . . . . Robots Rewired . | . . . . Allies Hacked . | . . . . Hacks Repelled . | . . . . Allies | -11 -10 -9 -9 -------- Run | Scr Mat Mat Sto Total Allies . | . . . . Largest Group . | . . . . Highest-Rated Group . | . . . . Highest-Rated Ally . | . . . . Total Orders . | . . . . Ally Attacks . | . . . . Total Damage . | . . . . Kills . | . . . . Allies Corrupted . | . . . . Allies Melted . | . . . . Intel | -11 -10 -9 -9 ------- Run | Scr Mat Mat Sto Robot Analysis Total . | . . . . Derelict Logs Recovered . | . . . . Drone Launches . | . . . . Drone Recoveries . | . . . . Exploration | -11 -10 -9 -9 ------------- Run | Scr Mat Mat Sto Turns Passed 717 | 87 307 136 187 Spaces Moved 400 | 63 164 84 89 Core 17 | 10 . 1 6 Treads 83 | . . . 83 Legs 300 | 53 164 83 . Wheels . | . . . . Hover . | . . . . Flight . | . . . . Fastest Speed 50 | 50 120 100 100 Average Speed 126 | 108 120 120 156 Slowest Speed 180 | 120 120 150 180 Overloaded Moves . | . . . . Propulsion Burnouts . | . . . . Robots Hopped . | . . . . Cave-ins Triggered 1 | . . . 1 Exploration Rate (%) 14 | 4 19 11 24 Regions Visited 3 Branch Regions 1 Pre-discovered Areas . | . . . . Known Exits Taken . | . . . . Unknown Exits Taken 3 | 1 1 1 . Scrap Searched . | . . . . Spaces Dug . | . . . . Terrain Destroyed 52 | . . . 52 Melee . | . . . . Projectile . | . . . . AOE 52 | . . . 52 Terrain Rammed . | . . . . Walls Destroyed . | . . . . Machines Disabled . | . . . . Actions | -11 -10 -9 -9 --------- Run | Scr Mat Mat Sto Total 527 | 78 217 100 132 Wait 4 | 1 . . 3 Move 397 | 62 163 83 89 Hop . | . . . . Pick Up 25 | 8 10 1 6 Fast Attach 3 | 2 . . 1 Attach 22 | 4 5 3 10 Detach 2 | . . . 2 Swap . | . . . . Drop 5 | . 4 . 1 Fire 54 | 1 35 13 5 Melee . | . . . . Ram . | . . . . Kick . | . . . . Crush . | . . . . Escape Stasis 15 | . . . 15 Rewire . | . . . . Trap . | . . . . Miscellaneous . | . . . . Route ------- -11/Scrapyard -10/Materials -9/Materials -9/Storage History --------- Turn | Location | Event 7 | -11/Scrapyard | Discovered new exit (range 15) 88 | -11/Scrapyard | Entered Materials 238 | -10/Materials | Discovered new exit (range 15) 279 | -10/Materials | Core integrity fell below 50% 304 | -10/Materials | Lost 3 parts (1p1n1w) 351 | -10/Materials | Build established: Mutant 395 | -10/Materials | Entered another Materials area 395 | -9/Materials | Evolved 2 slots: Utility x1, Weapon x1 407 | -9/Materials | Discovered new exit (range 15) 531 | -9/Materials | Entered Storage 561 | -9/Storage | Lost 8 parts (1p2n2u3w) 687 | -9/Storage | Core integrity fell below 50% 705 | -9/Storage | Core integrity fell below 20% 719 | -9/Storage | Crushed by falling debris 719 | -9/Storage | Smashed by cave-in Last Messages --------------- ALERT: Hostiles spotted, dispatching reinforcements to Terminal S012. Rocket Launcher destroyed. Y-45 Defender destroyed. Ion Engine destroyed. Compression Vault explodes. Y-45 Defender destroyed. Rocket Launcher destroyed. Destroyed Rocket Launcher. U-05 Engineer destroyed. Acquired Shotgun. The unstable cave ceiling collapses. K-01 Serf collects debris. U-05 Engineer lays Concrete. K-01 Serf collects debris. U-05 Engineer lays Concrete. U-05 Engineer builds a Wall. The unstable cave ceiling collapses. Crushed by falling debris. [Achievement: Unlikely Earthworm] Map ----- +----------------------------------------------------+ | ????????????????????????????????????????????????? | | ????????????????????????????????????????????????? | | ????????????????????????????????????????????????? | | ????????????????????????????????????????????????? | | ????????????????????????????????????????????????? | | ????????????????????????????????????????????????? | | ????????????????????????????????????????????????? | | ????????????????????????????????????????????????? | | ????????????????????????????????????????????????? | | ?????????????????????????+??????????????????????? | | ????????????????????????? ??????????????????????? | | ????????????????????????# ??????????????????????? | | ######### ????? #??????# ??????????????????????? | | ! # ??? "#?????# ??????????????????????? | | # """ T#?????# ??????????????????????? | | # """ "??#??## ##????????????????????? | | # #??? ## r #???#####????????????? | | # """ +???? *k #??? """#????????????? | | # """ #?????#u! #???""R"#????????????? | | # """ #????### ####"" "######???????? | | #?? ??????#! % # #???????? | | ###+####### ######### ## #???????? | | Y #???????? | | #???????? | | """ #???????? | | ####################### @ """ ????????? | | ??????????????????????# ! """ ????????? | | ??????????????????????## # ####????????? | | ???????????????????????##### ###???????????? | | | | | | | | | | | | | | | | | | | | | | | | | | | | | | | | | | | | | | | | | | | +----------------------------------------------------+ Best States ------------- Heat Dissipation 38 Energy Generation 10 Energy Capacity 250 Matter Stores 300 Matter Capacity 300 Sight Range 16 Terrain Scan Range 16 Terrain Scan Density 85 Armor Coverage 300 Evasion (%) 40 Recoil Reduction 1 Item Schematics ----------------- None Robot Schematics ------------------ None Fabricated ------------ Nothing Alien Tech Used ----------------- None Achievements -------------- Unlikely Earthworm Challenges ------------ None Game ------ Seed ImprinterCannonFilter Manual? 0 Play Time 00:16:33 Cumulative 1.8 hours Start 2022.03.13 @ 13:46:38 End 2022.03.13 @ 14:04:46 Sessions 1 Manual Loads 0 Difficulty Rogue Special Mode None Game No. 4 Rogue 4 Adventurer 0 Explorer 0 Win Type - Total 0 Types 0/0/0/0/0/0/0/0/0 Lore% 0 Gallery% 4 Achievement% 4 Wizard Run 0 Options --------- ASCII 0 Keyboard 0 Movement Mouse Keybinds 0 Fullscreen 1 Font 20/SmallcapsGlow Map View 66x50 Tactical HUD 0 Map Filters NONE Filters NONE Steam 1 RUN: 11855406-1eeb-4436-9fd6-4540ea192cfd